Cogmind - Beta 10.1 @@@ ROGUE MODE // 2020.09.30 @ 23:41:40 Player: Calanor Result: Destroyed by G-47 Trooper with Particle Gun Performance ------------- Evolutions (2) 1000 Regions Visited (7) 1400 Robots Destroyed (213) 1065 Value Destroyed (6342) 6342 Prototype IDs (14) 280 Alien Tech Used (0) 0 Bonus (1960) 1960 TOTAL SCORE: 12047 Bonus ------- High Alert Combat Kills 960 Entered Garrisons 200 Used RIF Installer 500 Aligned with FarCom 300 Cogmind --------- Core Integrity 0/550 Matter 84/300 Energy 450/450 System Corruption 12% Temperature Cool (9) Movement Walking (180) Ox2 Location -8/Garrison Parts ------- > --- POWER (1) -------- Light Angular Momentum Engine > --- PROPULSION (3) --- Carbon-fiber Leg > --- UTILITY (5) ------ Improved Heat Sink Medium Storage Unit Large Storage Unit Large Battery Hacking Suite > --- WEAPON (2) ------- Heavy Assault Rifle Katana > --- INVENTORY (14) --- Heavy Ion Engine Heavy Ion Engine Light Nuclear Core Improved Heat Sink Long-range Sensor Array Light Armor Plating Improved Light Armor Plating Relay Coupler [Brawler] (26) Relay Coupler [Duelist] (28) Relay Coupler [Hunter] (18) Improved Trap Extractor Latent Energy Streamer Proton Missile Launcher Mini Grenade Launcher Peak State ------------ > --- POWER ------------ Heavy Ion Engine > --- PROPULSION ------- Armored Treads Armored Treads Armored Treads > --- UTILITY ---------- Advanced Heat Sink Medium Storage Unit Large Storage Unit Large Battery Hacking Suite > --- WEAPON ----------- Gatling Laser Latent Energy Streamer > --- INVENTORY -------- Heavy Ion Engine Improved Heat Sink Improved Heat Sink Long-range Sensor Array Improved Trap Extractor Improved EM Shotgun Improved EM Pulse Cannon Improved Assault Rifle Heavy Battle Rifle Proton Missile Launcher Mini Grenade Launcher [Rating: 40] Favorites ----------- Power Heavy Ion Engine Engine Heavy Ion Engine Propulsion Armored Treads Treads Armored Treads Leg Carbon-fiber Leg Flight Unit Improved VTOL Module Utility Large Storage Unit Device Improved Heat Sink Storage Large Storage Unit Hackware Hacking Suite Protection Hardened Light Armor Plating Weapon Improved EM Shotgun Energy Gun Improved EM Shotgun Energy Cannon Latent Energy Streamer Ballistic Gun Improved Assault Rifle Ballistic Cannon Flak Cannon Launcher Proton Missile Launcher Special Weapon Mining Laser Slashing Weapon Katana Build | -11 -10 -9 -9 -9 -8 -8 -8 ------- Run | Scr Mat Mat Min Exi Min Mat Gar Slots Evolved 4 | . . 2 . . . 2 . Power . | . . . . . . . . Propulsion 1 | . . 1 . . . . . Utility 3 | . . 1 . . . 2 . Weapon . | . . . . . . . . Parts Attached 154 | 7 12 43 9 4 7 40 32 Power 10 | 1 1 5 . . . 1 2 Engine 10 | 1 1 5 . . . 1 2 Core . | . . . . . . . . Reactor . | . . . . . . . . Propulsion 47 | 2 2 16 1 . 1 11 14 Treads 33 | 2 2 16 1 . 1 9 2 Leg 13 | . . . . . . 1 12 Wheel . | . . . . . . . . Hover . | . . . . . . . . Flight 1 | . . . . . . 1 . Utility 32 | 1 4 9 5 . 3 9 1 Device 10 | . 1 2 3 . 2 2 . Storage 14 | 1 3 2 1 . 1 5 1 Processor . | . . . . . . . . Hackware 1 | . . . . . . 1 . Protection 7 | . . 5 1 . . 1 . Artifact . | . . . . . . . . Weapon 65 | 3 5 13 3 4 3 19 15 Energy Gun 15 | 3 3 4 . . . 4 1 Energy Cannon 13 | . 2 . . 3 1 6 1 Ballistic Gun 24 | . . 2 3 1 2 8 8 Ballistic Cannon 5 | . . 5 . . . . . Launcher 6 | . . 1 . . . 1 4 Special Weapon 1 | . . 1 . . . . . Impact Weapon . | . . . . . . . . Slashing Weapon 1 | . . . . . . . 1 Piercing Weapon . | . . . . . . . . Special Melee Weapon . | . . . . . . . . Unidentified Prototypes 5 | . . 1 . 2 . 2 . Parts Lost 22 | . 2 4 . . 2 8 6 Power 1 | . . . . . . 1 . Propulsion 6 | . . . . . . 3 3 Utility 3 | . . . . . 2 1 . Weapon 12 | . 2 4 . . . 3 3 Highest Loss Streak 4 | . 2 1 . . 2 4 2 Average Slot Usage (%) 97 | . 92 99 100 99 91 96 97 Engine 10 | . 14 11 11 11 11 8 8 Treads 27 | . 27 32 33 33 33 25 5 Leg 2 | . . . . . . . 19 Device 9 | . 7 11 11 11 10 8 9 Storage 16 | . 14 11 11 11 13 25 27 Hackware 3 | . . . . . . 8 9 Protection 4 | . . 10 10 11 . . . Energy Gun 8 | . 25 14 4 . . 5 1 Energy Cannon 1 | . 2 . . 5 1 2 . Ballistic Gun 9 | . . 1 13 16 20 10 9 Ballistic Cannon 1 | . . 4 4 . . . . Naked Turns . | . . . . . . . . Heaviest Build 50 | 11 28 44 40 44 44 50 47 Greatest Support 60 | 40 40 60 60 60 60 60 60 Greatest Overweight (x) 3 | 3 . . . . . 2 3 Average Overweight (x) . | 1 . . . . . . . Largest Inventory Capacity 18 | 6 18 16 10 10 10 14 14 Average Capacity 11 | 5 9 10 10 10 10 13 14 Most Carried 14 | 5 10 10 10 10 10 14 14 Average Carried 10 | 2 8 9 9 9 9 12 13 Final Capacity 14 | 6 10 10 10 10 10 14 14 Final Carried 14 | 4 10 10 10 10 10 14 14 Class Distribution -------------------- 73% | Mutant 26% | Scavenger-Mutant Dominant Class ---------------- Mutant | -10/Materials Scavenger-Mutant | -9/Materials Mutant | -9/Mines Mutant | -9/Exiles Mutant | -8/Mines Mutant | -8/Materials Scavenger-Mutant | -8/Garrison Resources | -11 -10 -9 -9 -9 -8 -8 -8 ----------- Run | Scr Mat Mat Min Exi Min Mat Gar Matter Collected 3797 | 230 140 854 244 . 294 1171 864 Remotely . | . . . . . . . . Salvage Created 7697 | . 660 2230 430 . 585 2677 1115 Parts 494 | . 45 169 30 . 21 185 44 Haulers Intercepted 10 | . 1 4 . . . 5 . Recyclers Shooed 5 | . 1 . . . 2 2 . Parts Field Recycled . | . . . . . . . . Retrieved Matter . | . . . . . . . . Parts Self-Destructed . | . . . . . . . . Prevented . | . . . . . . . . Kills | -11 -10 -9 -9 -9 -8 -8 -8 ------- Run | Scr Mat Mat Min Exi Min Mat Gar Combat Hostiles Destroyed 168 | . 13 48 17 . 9 57 24 Guns 104 | . 7 32 12 . 6 37 10 Cannons 27 | . 3 12 5 . . 7 . AOE 32 | . 3 4 . . 3 9 13 Classes Destroyed 12 | . 4 6 . . 1 . 1 Worker 7 | . . 1 . . . 6 . Builder 5 | . . 3 . . . 2 . Hauler 10 | . 1 4 . . . 5 . Recycler 6 | . . 3 . . 1 2 . Operator 4 | . 1 1 . . . 2 . Watcher 13 | . 3 5 . . . 5 . Swarmer 62 | . . 18 10 . . 31 3 Grunt 74 | . 13 17 7 . 8 15 14 Brawler 4 | . . 3 . . . 1 . Duelist 2 | . . . . . 1 1 . Sentry 23 | . . 10 . . . 9 4 Hunter 3 | . . . . . . . 3 Best Kill Streak 10 | . 3 9 4 . 3 10 3 Combat Bots Only 8 | . 3 8 4 . 3 8 3 Max Kills in Single Turn 3 | . 1 2 2 . 3 3 2 Gunslinging 1 | . . 1 . . . 1 . Exploded 3 | . 1 2 . . 3 3 2 Melee . | . . . . . . . . Uniques/NPCs Destroyed . | . . . . . . . . Combat | -11 -10 -9 -9 -9 -8 -8 -8 -------- Run | Scr Mat Mat Min Exi Min Mat Gar Damage Taken 7078 | . 429 1809 276 . 552 2143 1869 Core 832 | . 25 184 29 . 39 303 252 Absorbed by Shields . | . . . . . . . . Core Remaining (%) 75 | 100 90 . . . 37 . . Volleys Fired 510 | . 44 138 26 . 32 164 106 Largest 2 | . 2 2 2 . 2 2 2 Hottest 149 | . 110 100 89 . 83 149 84 Shots Fired 913 | . 84 245 52 . 64 306 162 Gun 715 | . 71 163 38 . 62 259 122 Cannon 149 | . 13 73 14 . 2 45 2 Launcher 42 | . . 2 . . . 2 38 Special 7 | . . 7 . . . . . Kinetic 510 | . . 103 38 . 62 188 119 Thermal 52 | . 26 7 . . . 19 . Explosive 15 | . . 2 . . . 2 11 Electromagnetic 336 | . 58 133 14 . 2 97 32 Robot Hit Streak 23 | . 11 23 17 . 19 22 10 Robot Miss Streak 9 | . 3 8 9 . 2 5 4 Penetration Max . | . . . . . . . . Secondary Targets 8 | . . 1 . . 1 5 1 Max Gunslinging Chain 1 | . . 1 . . 1 1 1 Shots Hit Robots 595 | . 55 171 37 . 43 213 76 Core Hits 332 | . 28 98 27 . 19 105 55 Critical Hits 11 | . . 4 1 . 1 2 3 Critical Kills 2 | . . 1 . . . 1 . Critical Parts Destroyed 9 | . . 3 1 . 1 1 3 Melee Attacks 2 | . . . . . . . 2 Impact . | . . . . . . . . Slashing 2 | . . . . . . . 2 Piercing . | . . . . . . . . Sneak Attacks . | . . . . . . . . Combat Hostiles . | . . . . . . . . Follow-up Attacks . | . . . . . . . . Damage Inflicted 14410 | . 1057 3383 942 . 1186 5322 2520 Guns 8320 | . 713 2151 536 . 820 2949 1151 Cannons 2110 | . 174 935 140 . . 853 8 Explosions 3943 | . 170 297 262 . 366 1520 1328 Melee 33 | . . . . . . . 33 Ramming 4 | . . . 4 . . . . Kinetic 5848 | . . 1285 470 . 820 2135 1138 Thermal 1560 | . 444 297 262 . . 541 16 Explosive 366 | . . . . . . 166 200 Electromagnetic 6599 | . 613 1801 206 . 366 2480 1133 Impact . | . . . . . . . . Slashing 33 | . . . . . . . 33 Piercing . | . . . . . . . . Highest Corruption 12 | . . . . . 4 9 12 Average Corruption 7 | . . . . . 1 7 11 Corruption Purged . | . . . . . . . . Effects 220 | . . . . . 5 113 102 Message Errors 35 | . . . . . 2 21 12 Matter Fused 34 | . . . . . 1 22 11 Heat Flow Errors 24 | . . . . . . 13 11 Energy Discharges 18 | . . . . . . 13 5 Parts Rejected 4 | . . . . . . 2 2 Data Loss (minor) 23 | . . . . . 1 10 12 Data Loss (major) 7 | . . . . . . 4 3 Misfires 6 | . . . . . . 2 4 Alerts 3 | . . . . . . . 3 Misdirections 8 | . . . . . . . 8 Targeting Errors 47 | . . . . . 1 21 25 Weapon Failures 11 | . . . . . . 5 6 Overload Shots . | . . . . . . . . Overflow Damage 261 | . . 18 20 . . 147 76 Projectiles 42 | . . . . . . 42 . Explosions 219 | . . 18 20 . . 105 76 Melee . | . . . . . . . . Knockbacks 13 | . . 8 5 . . . . Impact . | . . . . . . . . Kinetic 13 | . . 8 5 . . . . Secondary . | . . . . . . . . Self-Inflicted Damage 444 | . 39 127 20 . 101 86 71 Shots 14 | . 1 4 1 . 2 3 3 Rammed 1 | . . . 1 . . . . Targets Rammed 1 | . . . 1 . . . . Kicked . | . . . . . . . . Crushed . | . . . . . . . . Highest Temperature 355 | . 278 12 2 . 94 355 262 Average Temperature 71 | . 56 4 2 . 52 106 106 Received Heat Transfer 2241 | . 216 549 63 . 198 549 666 Siege Activations . | . . . . . . . . Robots Corrupted 7 | . . . . . . 5 2 Combat Hostiles 5 | . . . . . . 4 1 Parts Fried 27 | . 4 7 . . 2 9 5 Impact Corruptions . | . . . . . . . . Robots Melted . | . . . . . . . . Combat Hostiles . | . . . . . . . . Parts Melted 1 | . 1 . . . . . . Heat Transferred 2516 | . 766 400 350 . . 950 50 Parts Sabotaged . | . . . . . . . . Parts Stolen . | . . . . . . . . Parts Stripped . | . . . . . . . . Power Chain Reactions 17 | . 4 6 2 . . 4 1 Missiles Intercepted . | . . . . . . . . Latent Energy Used 776 | . . . . . 255 400 121 LE Corruption 13 | . . . . . 4 6 3 Alert | -11 -10 -9 -9 -9 -8 -8 -8 ------- Run | Scr Mat Mat Min Exi Min Mat Gar Peak Influence 1552 | . 136 561 475 . 118 811 1552 Initial 527 | . . 50 215 . . 1 527 Average 374 | . 39 426 278 . 44 277 1070 Maximum Alert Level 4 | . . 2 2 . . 3 4 Low Security (%) 36 | 100 100 8 20 . 100 37 . Level 1 25 | . . 24 60 . . 48 . Level 2 25 | . . 67 18 . . 10 17 Level 3 6 | . . . . . . 2 38 Level 4 6 | . . . . . . . 44 Level 5 . | . . . . . . . . High Security . | . . . . . . . . Max Security . | . . . . . . . . Squads Dispatched 19 | . 3 7 . . . 9 . Investigation 7 | . 2 4 . . . 1 . Extermination . | . . . . . . . . Reinforcement 5 | . 1 2 . . . 2 . Assault 1 | . . 1 . . . . . Garrison 6 | . . . . . . 6 . Intercept . | . . . . . . . . Construction Impeded 1 | . . 1 . . . . . Haulers Reinforced . | . . . . . . . . Stealth | -11 -10 -9 -9 -9 -8 -8 -8 --------- Run | Scr Mat Mat Min Exi Min Mat Gar Distress Signals 7 | . 2 3 . . . 2 . Communications Jammed . | . . . . . . . . Distress Signals . | . . . . . . . . Times Spotted 213 | . 16 64 15 . 9 81 28 Peak Tracking Total 6 | . 3 5 4 . 3 6 5 Tactical Retreats 17 | . . 5 . . . 10 2 Traps | -11 -10 -9 -9 -9 -8 -8 -8 ------- Run | Scr Mat Mat Min Exi Min Mat Gar Traps Triggered 18 | . 2 2 1 . . 3 10 Indirectly 5 | . . . . . . . 5 Trap Hack Attempts . | . . . . . . . . Triggered . | . . . . . . . . Disarmed 10 | . 6 . . . . 4 . Reprogrammed . | . . . . . . . . Reused . | . . . . . . . . Traps Extracted . | . . . . . . . . Installed . | . . . . . . . . Triggered 1 | . . . . . . 1 . Machines | -11 -10 -9 -9 -9 -8 -8 -8 ---------- Run | Scr Mat Mat Min Exi Min Mat Gar Machines Disabled 18 | . . 3 1 . 2 9 3 Max in Single Turn 3 | . . 1 1 . 2 3 1 Garrison Relay 3 | . . . . . . . 3 Machines Sabotaged . | . . . . . . . . Garrisons Compromised . | . . . . . . . . Overloaded Fab Kills . | . . . . . . . . Fab Network Shutdowns . | . . . . . . . . Hacking | -11 -10 -9 -9 -9 -8 -8 -8 --------- Run | Scr Mat Mat Min Exi Min Mat Gar Machines Accessed 42 | . 10 16 1 4 2 9 . Terminals 26 | . 7 10 . . 2 7 . Fabricators . | . . . . . . . . Repair Stations 4 | . 1 2 . . . 1 . Recycling Units 4 | . 2 2 . . . . . Scanalyzers 2 | . . 2 . . . . . Garrison Access 1 | . . . . . . 1 . Total Hacks 179 | . 27 61 1 49 6 35 . Successful 137 | . 18 36 1 49 5 28 . Failed 42 | . 9 25 . . 1 7 . Catastrophic 7 | . 1 4 . . . 2 . Database Lockouts . | . . . . . . . . Manual 19 | . 2 8 . 1 4 4 . Terminals 99 | . 20 44 . . 6 29 . Fabricators . | . . . . . . . . Repair Stations 14 | . 3 9 . . . 2 . Recycling Units 6 | . 4 2 . . . . . Scanalyzers 6 | . . 6 . . . . . Garrison Access 4 | . . . . . . 4 . Terminal Hacks 114 | . 12 22 1 49 5 25 . Record 60 | . . 4 . 49 . 7 . Robot Analysis 4 | . 3 . . . . 1 . Prototype ID Bank 6 | . 2 2 . . . 2 . Open Door 1 | . . . 1 . . . . Branch Access Points 2 | . . 1 . . . 1 . Emergency Access Points 2 | . . 1 . . . 1 . Alert Level 11 | . 1 4 . . 1 5 . Unreport Threat 6 | . . 2 . . 2 2 . Locate Traps 7 | . 2 3 . . . 2 . Disarm Traps 3 | . 1 . . . . 2 . Investigation Status 1 | . . 1 . . . . . Registered Components 3 | . 1 1 . . . 1 . Zone Layout 8 | . 2 3 . . 2 1 . Fabricator Hacks . | . . . . . . . . Repair Station Hacks 12 | . 2 8 . . . 2 . Scan Component 6 | . 1 4 . . . 1 . Repair 6 | . 1 4 . . . 1 . Recycling Unit Hacks 6 | . 4 2 . . . . . Process 1 | . 1 . . . . . . Report Inventory 4 | . 2 2 . . . . . Retrieve Matter 1 | . 1 . . . . . . Scanalyzer 4 | . . 4 . . . . . Insert Component 2 | . . 2 . . . . . Analyze 2 | . . 2 . . . . . Garrison Access Hacks 1 | . . . . . . 1 . Unlock Access 1 | . . . . . . 1 . Unauthorized Hacks . | . . . . . . . . Terminals . | . . . . . . . . Fabricators . | . . . . . . . . Repair Stations . | . . . . . . . . Recycling Units . | . . . . . . . . Scanalyzers . | . . . . . . . . Garrison Access . | . . . . . . . . Data Cores Recovered . | . . . . . . . . Used . | . . . . . . . . Hacking Detections 34 | . 9 14 . . 2 9 . Full Trace Events 2 | . . 2 . . . . . Feedback Events . | . . . . . . . . Feedback Blocked . | . . . . . . . . Robot Schematics Acquired . | . . . . . . . . Robots Built . | . . . . . . . . Matter . | . . . . . . . . Time . | . . . . . . . . Total Robot Build Rating . | . . . . . . . . Part Schematics Acquired 2 | . . 2 . . . . . Parts Built . | . . . . . . . . Matter . | . . . . . . . . Time . | . . . . . . . . Total Part Build Rating . | . . . . . . . . Parts Repaired 6 | . 1 4 . . . 1 . Time 193 | . 26 141 . . . 26 . Parts Recycled . | . . . . . . . . Recycled Matter 74 | . 74 . . . . . . Retrieved Matter 74 | . 74 . . . . . . Retrieved Components . | . . . . . . . . Parts Scanalyzed 2 | . . 2 . . . . . Part Schematics Acquired 2 | . . 2 . . . . . Parts Damaged . | . . . . . . . . Bothacking | -11 -10 -9 -9 -9 -8 -8 -8 ------------ Run | Scr Mat Mat Min Exi Min Mat Gar Used RIF Installer 1 | . . . . . . . 1 Robots Hacked . | . . . . . . . . Non-combat . | . . . . . . . . Combat . | . . . . . . . . Robot Hacks Applied . | . . . . . . . . Relay Couplers Released 10 | . . . . . . . 10 Machine Destruction 10 | . . . . . . . 10 Robots Rewired . | . . . . . . . . Allies Hacked . | . . . . . . . . Hacks Repelled . | . . . . . . . . Allies | -11 -10 -9 -9 -9 -8 -8 -8 -------- Run | Scr Mat Mat Min Exi Min Mat Gar Total Allies . | . . . . . . . . Largest Group . | . . . . . . . . Highest-Rated Group . | . . . . . . . . Highest-Rated Ally . | . . . . . . . . Total Orders . | . . . . . . . . Ally Attacks . | . . . . . . . . Total Damage . | . . . . . . . . Kills . | . . . . . . . . Allies Corrupted . | . . . . . . . . Allies Melted . | . . . . . . . . Intel | -11 -10 -9 -9 -9 -8 -8 -8 ------- Run | Scr Mat Mat Min Exi Min Mat Gar Robot Analysis Total 4 | . 3 . . . . 1 . Derelict Logs Recovered 3 | . . . 3 . . . . Drone Launches . | . . . . . . . . Drone Recoveries . | . . . . . . . . Exploration | -11 -10 -9 -9 -9 -8 -8 -8 ------------- Run | Scr Mat Mat Min Exi Min Mat Gar Turns Passed 14025 | 79 1516 3396 1508 1441 1224 3120 1741 Spaces Moved 6828 | 42 800 1591 743 840 612 1298 902 Core 22 | 22 . . . . . . . Treads 6065 | 20 800 1591 743 840 612 1298 161 Legs 741 | . . . . . . . 741 Wheels . | . . . . . . . . Hover . | . . . . . . . . Flight . | . . . . . . . . Fastest Speed 50 | 50 160 160 170 170 170 163 120 Average Speed 164 | 154 160 163 170 170 170 168 150 Slowest Speed 210 | 200 160 170 170 170 170 200 210 Overloaded Moves . | . . . . . . . . Propulsion Burnouts . | . . . . . . . . Robots Hopped . | . . . . . . . . Cave-ins Triggered . | . . . . . . . . Exploration Rate (%) 80 | 3 98 98 99 93 96 74 82 Regions Visited 7 Branch Regions 3 Pre-discovered Areas 3 | . . . 2 1 . . . Known Exits Taken 2 | . . 1 . . . 1 . Unknown Exits Taken 5 | 1 1 . 1 1 1 . . Scrap Searched 5 | . . . 2 . 3 . . Spaces Dug 19 | . . 18 . . 1 . . Terrain Destroyed 271 | . 15 47 15 . 25 111 58 Melee . | . . . . . . . . Projectile 18 | . . 11 1 . 3 3 . AOE 253 | . 15 36 14 . 22 108 58 Terrain Rammed . | . . . . . . . . Walls Destroyed . | . . . . . . . . Machines Disabled . | . . . . . . . . Actions | -11 -10 -9 -9 -9 -8 -8 -8 --------- Run | Scr Mat Mat Min Exi Min Mat Gar Total 8701 | 54 956 2130 935 856 730 1923 1117 Wait 1016 | . 75 311 139 . 78 390 23 Move 6821 | 41 799 1590 742 839 611 1297 902 Hop . | . . . . . . . . Pick Up 75 | 6 14 14 9 5 . 18 9 Fast Attach 29 | 3 3 8 . 2 2 5 6 Attach 33 | 3 5 6 . 1 1 9 8 Detach 8 | . 2 1 . 1 1 . 3 Swap 93 | 1 4 29 9 1 4 26 19 Drop 89 | . 10 33 9 7 1 14 15 Fire 510 | . 44 138 26 . 32 164 106 Melee 2 | . . . . . . . 2 Ram . | . . . . . . . . Kick . | . . . . . . . . Crush 1 | . . . 1 . . . . Escape Stasis 20 | . . . . . . . 20 Rewire 4 | . . . . . . . 4 Trap . | . . . . . . . . Miscellaneous . | . . . . . . . . Route ------- -11/Scrapyard -10/Materials (discovered 4 exits: *Mat x3 / [*Min]) -9/Materials (discovered 4 exits: *Mat x3 / *Min) -9/Mines (discovered 3 exits: *Mat x2 / *Exi) -9/Exiles (discovered 2 exits: *Min x2) -8/Mines (discovered 2 exits: *Mat x2) -8/Materials (discovered 3 exits: [*Fac] / *Sto / Gar) -8/Garrison (discovered 3 exits: [*Mat x3]) History --------- Turn | Location | Event 14 | -11/Scrapyard | Discovered new exit (range 15) 80 | -11/Scrapyard | Entered Materials 309 | -10/Materials | Build established: Mutant 656 | -10/Materials | Discovered new exit (range 12) 882 | -10/Materials | Repaired Lgt. Treads 912 | -10/Materials | Discovered new exit (range 8) 979 | -10/Materials | Discovered new exit (range 11) 1359 | -10/Materials | Discovered new exit (range 17) 1596 | -10/Materials | Entered another Materials area 1596 | -9/Materials | Evolved 2 slots: Propulsion x1, Utility x1 1915 | -9/Materials | Destroyed 8 combat bots 1978 | -9/Materials | Build established: Scavenger-Mutant 2136 | -9/Materials | Discovered new exit (range 10) 2233 | -9/Materials | Repaired Med. Armor Plating 2261 | -9/Materials | Repaired Lgt. Treads 2800 | -9/Materials | Discovered new exit (range 14) 2951 | -9/Materials | Repaired Med. Armor Plating 3318 | -9/Materials | Identified exit to Mines 3964 | -9/Materials | Build established: Mutant 3996 | -9/Materials | First assault squad dispatched 4354 | -9/Materials | Repaired Imp. EM Shotgun 4870 | -9/Materials | Discovered new exit (range 15) 4992 | -9/Materials | Entered Mines 5024 | -9/Mines | Discovered new exit (range 12) 5102 | -9/Mines | Core integrity fell below 50% 5202 | -9/Mines | Deemed a non-threat by the Exiles lab entrance 5202 | -9/Mines | Discovered new exit (range 5) 5412 | -9/Mines | Learned Materials machine intel 5466 | -9/Mines | Discovered new exit (range 15) 5549 | -9/Mines | Learned location of Zion (-6) 5560 | -9/Mines | A weapon hastily lodged in a ceiling crevice suddenly fell to the ground 5959 | -9/Mines | Met a Derelict who couldn't figure out how to use a Trap Extractor 5978 | -9/Mines | Learned location of Storage (-8) 6500 | -9/Mines | Entered Exiles 6529 | -9/Exiles | Discovered new exit (range 15) 6577 | -9/Exiles | Met 8R-AWN 6604 | -9/Exiles | Met EX-HEX 6704 | -9/Exiles | Met EX-DEC 6878 | -9/Exiles | Met EX-BIN 7123 | -9/Exiles | Aligned with FarCom system 7124 | -9/Exiles | Given EX-Vault access code 7223 | -9/Exiles | Opened EX-Vault 7234 | -9/Exiles | Found Prototype Energy Cannon 7235 | -9/Exiles | Identified Latent Energy Streamer 7245 | -9/Exiles | Found Prototype Energy Cannon 7246 | -9/Exiles | Identified Firepult 7305 | -9/Exiles | Warned to stay clear of 0b10 Research branches 7496 | -9/Exiles | Discovered new exit (range 12) 7618 | -9/Exiles | Visited The Gauntlet 7941 | -9/Exiles | Left Exiles lab with Latent Energy Streamer 7941 | -9/Exiles | Entered Mines 8082 | -8/Mines | Discovered new exit (range 5) 8444 | -8/Mines | Discovered new exit (range 5) 9165 | -8/Mines | Entered Materials 9165 | -8/Materials | Evolved 2 slots: Utility x2 9166 | -8/Materials | Loaded intel: 53 machine locations 9726 | -8/Materials | Identified exit to Storage 10398 | -8/Materials | Destroyed 8 combat bots 10407 | -8/Materials | Lost 4 parts (3n1w) 10680 | -8/Materials | Build established: Scavenger-Mutant 10721 | -8/Materials | Repaired Lrg. Battery 10839 | -8/Materials | Discovered new exit (range 16) 10982 | -8/Materials | Build established: Mutant 11663 | -8/Materials | Garrison activated, responded to threat 12005 | -8/Materials | Garrison activated, responded to threat 12226 | -8/Materials | Core integrity fell below 50% 12283 | -8/Materials | Identified exit to Garrison 12285 | -8/Materials | Entered Garrison 12313 | -8/Garrison | Triggered checkpoint 12314 | -8/Garrison | System corruption reached 10% 12579 | -8/Garrison | Triggered checkpoint 12905 | -8/Garrison | Triggered checkpoint 12918 | -8/Garrison | Build established: Scavenger-Mutant 13299 | -8/Garrison | Discovered new exit (range 10) 13350 | -8/Garrison | Triggered checkpoint 13390 | -8/Garrison | Garrison Relay disabled 13465 | -8/Garrison | Triggered checkpoint 13473 | -8/Garrison | Core integrity fell below 20% 13530 | -8/Garrison | Triggered checkpoint 13628 | -8/Garrison | Discovered new exit (range 13) 13694 | -8/Garrison | Triggered checkpoint 13730 | -8/Garrison | Triggered checkpoint 13791 | -8/Garrison | Garrison Relay disabled 13940 | -8/Garrison | Discovered new exit (range 13) 13973 | -8/Garrison | Installed Relay Interface Framework 14026 | -8/Garrison | Destroyed by G-47 Trooper with Particle Gun Last Messages --------------- 13908_ Triggered Stasis Trap. 13908_ A bubble of rippling energy engulfs the area. 13908_ Field strength at 85. 13910_ Field strength at 70. 13911_ Field strength at 55. 13912_ Field strength at 40. 13913_ Field strength at 25. 13914_ Field strength at 10. 13915_ Stasis field depleted. 13920_ System corrupted: IFF burst signal emitted. 13939_ System corrupted: Component data lost. 13940_ EXIT=FOUND 13954_ System corrupted: Matter fused (-6). 13972_ Initiating installation procedure... 13973_ Relay Interface Framework installed. 13978_ ONGD::8/#A7E,DS:A/VA 14008_ Triggered Alarm Trap. 14008_ An alarm sounds. 14014_ HC KEFW COH J8%